[Event "*** MasterClass Titled Tuesday Blitz"]
[Site "Chess.com"]
[Date "2017.08.01"]
[Round "10"]
[White "toad"]
[Black "Chess64Surfer"]
[Result "1-0"]
[WhiteElo "2159"]
[BlackElo "2037"]
[TimeControl "180+2"]
[EndTime "15:16:00 PDT"]
[Termination "toad won by checkmate"]

1. d4 {[%clk 0:03:01.9]} 1... d6 {[%clk 0:02:59.8]} 2. Nf3 {[%clk 0:03:02.1]}
2... g6 {[%clk 0:03:00.3]} 3. g3 {[%clk 0:03:02.8]} 3... Bg7 {[%clk 0:03:00.2]}
4. Bg2 {[%clk 0:03:03.5]} 4... Bg4 {[%clk 0:03:00.8]} 5. h3 {[%clk 0:03:01.3]}
5... Bxf3 {[%clk 0:03:00.7]} 6. Bxf3 {[%clk 0:03:02.5]} 6... c6 {[%clk
0:03:01.6]} 7. c4 {[%clk 0:02:57.3]} 7... Nd7 {[%clk 0:03:01.4]} 8. Nc3 {[%clk
0:02:56.2]} 8... e6 {[%clk 0:03:01.5]} 9. b3 {[%clk 0:02:40.9]} 9... d5 {[%clk
0:03:01.2]} 10. e4 {[%clk 0:02:25.8]} 10... dxc4 {[%clk 0:02:51.4]} 11. bxc4
{[%clk 0:02:26.6]} 11... Nb6 {[%clk 0:02:51.3]} 12. e5 {[%clk 0:01:56.7]} 12...
Nxc4 {[%clk 0:02:43.1]} 13. Be2 {[%clk 0:01:28.2]} 13... Nb6 {[%clk 0:02:30.4]}
14. Ba3 {[%clk 0:01:28]} 14... Ne7 {[%clk 0:02:28.5]} 15. Ne4 {[%clk 0:01:20.7]}
15... Nbc8 {[%clk 0:02:02]} 16. O-O {[%clk 0:01:14]} 16... O-O {[%clk
0:01:41.4]} 17. Rb1 {[%clk 0:01:13.3]} 17... b6 {[%clk 0:01:33.3]} 18. Nd6
{[%clk 0:01:06.6]} 18... Nxd6 {[%clk 0:01:29.9]} 19. Bxd6 {[%clk 0:01:08]} 19...
Re8 {[%clk 0:01:27.2]} 20. Qa4 {[%clk 0:01:03.6]} 20... b5 {[%clk 0:01:22.4]}
21. Qa6 {[%clk 0:01:03.3]} 21... Qb6 {[%clk 0:01:18.4]} 22. Qxb6 {[%clk
0:00:37.4]} 22... axb6 {[%clk 0:01:18.7]} 23. a3 {[%clk 0:00:27.4]} 23... Nf5
{[%clk 0:01:12.8]} 24. Bf3 {[%clk 0:00:09.7]} 24... Nxd4 {[%clk 0:01:10.2]} 25.
Bg2 {[%clk 0:00:10.9]} 25... Ra5 {[%clk 0:00:52]} 26. Rfd1 {[%clk 0:00:11.3]}
26... c5 {[%clk 0:00:51.7]} 27. Bf1 {[%clk 0:00:07.1]} 27... Rxa3 {[%clk
0:00:45.1]} 28. Bxb5 {[%clk 0:00:08]} 28... Nf3+ {[%clk 0:00:37]} 29. Kg2 {[%clk
0:00:08.6]} 29... Nxe5 {[%clk 0:00:36.5]} 30. Bxe8 {[%clk 0:00:09]} 30... Nf3
{[%clk 0:00:29]} 31. Rxb6 {[%clk 0:00:07]} 31... Nd4 {[%clk 0:00:27.8]} 32. Rb8
{[%clk 0:00:07.3]} 32... h6 {[%clk 0:00:26.8]} 33. Bxc5 {[%clk 0:00:06.2]} 33...
Nf5 {[%clk 0:00:22.5]} 34. Rb7 {[%clk 0:00:05.9]} 34... Ra2 {[%clk 0:00:21.3]}
35. Bxf7+ {[%clk 0:00:06.6]} 35... Kh7 {[%clk 0:00:21.9]} 36. Bxe6 {[%clk
0:00:07.6]} 36... Ne3+ {[%clk 0:00:21.6]} 37. Bxe3 {[%clk 0:00:08.5]} 37... h5
{[%clk 0:00:22.1]} 38. Bd4 {[%clk 0:00:08.4]} 38... Kh6 {[%clk 0:00:21.6]} 39.
Bxg7+ {[%clk 0:00:09]} 39... Kg5 {[%clk 0:00:22.1]} 40. h4# {[%clk 0:00:10.3]}
1-0

[Event "*** MasterClass Titled Tuesday Blitz"]
[Site "Chess.com"]
[Date "2017.08.01"]
[Round "10"]
[White "Jahonas"]
[Black "IvaVidenova"]
[Result "1-0"]
[WhiteElo "2200"]
[BlackElo "2393"]
[TimeControl "180+2"]
[EndTime "15:16:14 PDT"]
[Termination "Jahonas won by resignation"]

1. d4 {[%clk 0:03:02]} 1... Nf6 {[%clk 0:02:50.5]} 2. Nf3 {[%clk 0:03:02.3]}
2... g6 {[%clk 0:02:51.6]} 3. g3 {[%clk 0:03:03.2]} 3... Bg7 {[%clk 0:02:52.7]}
4. Bg2 {[%clk 0:03:04.5]} 4... O-O {[%clk 0:02:53.7]} 5. c4 {[%clk 0:03:05.7]}
5... d6 {[%clk 0:02:54.7]} 6. O-O {[%clk 0:03:06.9]} 6... Nbd7 {[%clk
0:02:56.1]} 7. Nc3 {[%clk 0:03:08.2]} 7... e5 {[%clk 0:02:56.4]} 8. dxe5 {[%clk
0:03:09]} 8... dxe5 {[%clk 0:02:49.9]} 9. Qc2 {[%clk 0:03:09.6]} 9... c6 {[%clk
0:02:49.5]} 10. Rd1 {[%clk 0:03:09]} 10... Qc7 {[%clk 0:02:50.1]} 11. b3 {[%clk
0:03:09.1]} 11... Rd8 {[%clk 0:02:37.2]} 12. Ba3 {[%clk 0:03:08.6]} 12... Bf8
{[%clk 0:02:37.7]} 13. Bxf8 {[%clk 0:03:08.7]} 13... Rxf8 {[%clk 0:02:31.3]} 14.
Ne4 {[%clk 0:03:09.7]} 14... Nxe4 {[%clk 0:02:27.3]} 15. Qxe4 {[%clk 0:03:11.7]}
15... Re8 {[%clk 0:02:26.4]} 16. Qh4 {[%clk 0:03:10.7]} 16... Kg7 {[%clk
0:02:24.8]} 17. Ng5 {[%clk 0:03:04.5]} 17... h6 {[%clk 0:02:25.3]} 18. Ne4
{[%clk 0:02:58.5]} 18... Re6 {[%clk 0:01:53.7]} 19. g4 {[%clk 0:02:33.7]} 19...
Nf6 {[%clk 0:01:49.8]} 20. Nxf6 {[%clk 0:02:32.6]} 20... Rxf6 {[%clk 0:01:51.7]}
21. e3 {[%clk 0:02:27.9]} 21... Rd6 {[%clk 0:01:43.2]} 22. Qg3 {[%clk
0:02:19.7]} 22... Rxd1+ {[%clk 0:01:39.3]} 23. Rxd1 {[%clk 0:02:18.7]} 23... Be6
{[%clk 0:01:40.8]} 24. c5 {[%clk 0:02:09.4]} 24... f6 {[%clk 0:01:11.4]} 25. Rd6
{[%clk 0:02:07.8]} 25... Bf7 {[%clk 0:01:12.5]} 26. f4 {[%clk 0:02:05.3]} 26...
exf4 {[%clk 0:01:11.3]} 27. Qxf4 {[%clk 0:02:04.7]} 27... Qe7 {[%clk 0:01:12.4]}
28. h4 {[%clk 0:01:54.6]} 28... g5 {[%clk 0:01:04.9]} 29. hxg5 {[%clk
0:01:55.1]} 29... hxg5 {[%clk 0:01:05.8]} 30. Qd4 {[%clk 0:01:54.5]} 30... Re8
{[%clk 0:01:02.1]} 31. Kf2 {[%clk 0:01:54.2]} 31... Be6 {[%clk 0:00:46.1]} 32.
Bf3 {[%clk 0:01:44.3]} 32... Qf7 {[%clk 0:00:46.2]} 33. b4 {[%clk 0:01:30.2]}
33... Bc8 {[%clk 0:00:43.1]} 34. Be2 {[%clk 0:01:25.8]} 34... Qe7 {[%clk
0:00:43]} 35. a4 {[%clk 0:01:25.3]} 35... Qe5 {[%clk 0:00:43.8]} 36. Qxe5 {[%clk
0:01:24.7]} 36... Rxe5 {[%clk 0:00:38.9]} 37. Rd8 {[%clk 0:01:23.8]} 37... Be6
{[%clk 0:00:39.1]} 38. Rb8 {[%clk 0:01:24.2]} 38... Re4 {[%clk 0:00:32.2]} 39.
Rxb7+ {[%clk 0:01:24.3]} 39... Kh6 {[%clk 0:00:32.8]} 40. Bf3 {[%clk 0:01:23]}
40... Rc4 {[%clk 0:00:31.8]} 41. Bxc6 {[%clk 0:01:21.6]} 41... Bxg4 {[%clk
0:00:32.8]} 42. Bf3 {[%clk 0:01:20.7]} 42... Bxf3 {[%clk 0:00:30.9]} 43. Kxf3
{[%clk 0:01:21.8]} 43... f5 {[%clk 0:00:32.2]} 44. Rxa7 {[%clk 0:01:16.4]} 44...
Rxb4 {[%clk 0:00:32.7]} 45. a5 {[%clk 0:01:09.6]} 45... Rc4 {[%clk 0:00:33.4]}
46. Rc7 {[%clk 0:01:09.7]} 46... g4+ {[%clk 0:00:32.6]} 47. Kg3 {[%clk 0:01:10]}
47... Re4 {[%clk 0:00:32.6]} 48. a6 {[%clk 0:01:08.6]} 48... Rxe3+ {[%clk
0:00:32.5]} 49. Kf4 {[%clk 0:01:09.2]} 49... Rf3+ {[%clk 0:00:33.9]} 50. Ke5
{[%clk 0:01:10.4]} 50... g3 {[%clk 0:00:34.2]} 51. a7 {[%clk 0:01:11.3]} 51...
Ra3 {[%clk 0:00:34.6]} 52. Rb7 {[%clk 0:01:00.9]} 52... Kg5 {[%clk 0:00:35.5]}
53. Rg7+ {[%clk 0:01:00.1]} 53... Kh4 {[%clk 0:00:36.4]} 54. Kxf5 {[%clk
0:00:59.6]} 54... Kh3 {[%clk 0:00:31.9]} 55. Ke6 {[%clk 0:00:58.2]} 55... g2
{[%clk 0:00:31.9]} 56. c6 {[%clk 0:00:55.9]} 56... Rxa7 {[%clk 0:00:30.1]} 57.
Rxa7 {[%clk 0:00:53.9]} 57... g1=Q {[%clk 0:00:31.3]} 58. Rh7+ {[%clk
0:00:54.9]} 58... Kg2 {[%clk 0:00:32.7]} 59. Rg7+ {[%clk 0:00:56]} 1-0

[Event "*** MasterClass Titled Tuesday Blitz"]
[Site "Chess.com"]
[Date "2017.08.01"]
[Round "10"]
[White "Sharafiev_Azat"]
[Black "Muracle"]
[Result "0-1"]
[WhiteElo "2344"]
[BlackElo "2440"]
[TimeControl "180+2"]
[EndTime "15:16:45 PDT"]
[Termination "Muracle won on time"]

1. Nf3 {[%clk 0:03:01.6]} 1... Nf6 {[%clk 0:03:00.6]} 2. c4 {[%clk 0:03:03]}
2... g6 {[%clk 0:03:01.3]} 3. g3 {[%clk 0:03:04.3]} 3... Bg7 {[%clk 0:03:02]} 4.
Bg2 {[%clk 0:03:06.2]} 4... O-O {[%clk 0:03:03.2]} 5. O-O {[%clk 0:03:08.1]}
5... d5 {[%clk 0:03:05.1]} 6. cxd5 {[%clk 0:03:06.8]} 6... Nxd5 {[%clk
0:03:05.8]} 7. Nc3 {[%clk 0:03:02.8]} 7... Nb6 {[%clk 0:03:06]} 8. d3 {[%clk
0:03:02.9]} 8... Nc6 {[%clk 0:03:05.7]} 9. Be3 {[%clk 0:02:57.9]} 9... e5 {[%clk
0:03:02.1]} 10. Qd2 {[%clk 0:02:52.9]} 10... Nd4 {[%clk 0:03:00.2]} 11. Bh6
{[%clk 0:02:49.5]} 11... Nxf3+ {[%clk 0:02:46.2]} 12. Bxf3 {[%clk 0:02:48.9]}
12... c6 {[%clk 0:02:46.8]} 13. Bxg7 {[%clk 0:02:48.4]} 13... Kxg7 {[%clk
0:02:48.7]} 14. Ne4 {[%clk 0:02:48.1]} 14... Qe7 {[%clk 0:02:44.4]} 15. Rac1
{[%clk 0:02:46.8]} 15... Be6 {[%clk 0:02:42.6]} 16. Nc5 {[%clk 0:02:47]} 16...
Bd5 {[%clk 0:02:42]} 17. e4 {[%clk 0:02:36.1]} 17... Be6 {[%clk 0:02:39.7]} 18.
Qc3 {[%clk 0:02:36.1]} 18... f6 {[%clk 0:02:38]} 19. d4 {[%clk 0:02:35.5]} 19...
exd4 {[%clk 0:02:36.7]} 20. Qxd4 {[%clk 0:02:35.4]} 20... Rad8 {[%clk
0:02:37.3]} 21. Nxe6+ {[%clk 0:02:34]} 21... Qxe6 {[%clk 0:02:37.2]} 22. Qb4
{[%clk 0:02:33.9]} 22... Rfe8 {[%clk 0:02:33.3]} 23. a4 {[%clk 0:02:30.9]} 23...
Re7 {[%clk 0:02:12.6]} 24. a5 {[%clk 0:02:30.8]} 24... Nc8 {[%clk 0:02:13.1]}
25. e5 {[%clk 0:01:56.8]} 25... Qxe5 {[%clk 0:02:01.7]} 26. a6 {[%clk 0:01:47]}
26... bxa6 {[%clk 0:01:59.5]} 27. Rfe1 {[%clk 0:01:45.4]} 27... Qd6 {[%clk
0:01:56.5]} 28. Rxe7+ {[%clk 0:01:40.3]} 28... Nxe7 {[%clk 0:01:56.9]} 29. Qb7
{[%clk 0:01:40.6]} 29... Rd7 {[%clk 0:01:55.8]} 30. Qxa6 {[%clk 0:01:41.7]}
30... Qb4 {[%clk 0:01:44.6]} 31. Qa2 {[%clk 0:01:26]} 31... Rd2 {[%clk 0:01:23]}
32. Qxa7 {[%clk 0:01:19.1]} 32... g5 {[%clk 0:01:08.9]} 33. Rxc6 {[%clk
0:01:03.7]} 33... Kg6 {[%clk 0:01:05.7]} 34. Re6 {[%clk 0:00:59.4]} 34... Nc8
{[%clk 0:00:55.8]} 35. Qa6 {[%clk 0:00:50.5]} 35... Nd6 {[%clk 0:00:44.6]} 36.
Qc6 {[%clk 0:00:45.2]} 36... Qd4 {[%clk 0:00:43.2]} 37. Re2 {[%clk 0:00:37.6]}
37... Rxe2 {[%clk 0:00:34.1]} 38. Bxe2 {[%clk 0:00:38.7]} 38... Ne4 {[%clk
0:00:35]} 39. Qc2 {[%clk 0:00:31.9]} 39... Qxf2+ {[%clk 0:00:29.5]} 40. Kh1
{[%clk 0:00:33]} 40... Qe1+ {[%clk 0:00:28.5]} 41. Kg2 {[%clk 0:00:34.3]} 41...
Qf2+ {[%clk 0:00:29.8]} 42. Kh1 {[%clk 0:00:35.4]} 42... Qf5 {[%clk 0:00:26.3]}
43. Bd3 {[%clk 0:00:30.3]} 43... Nf2+ {[%clk 0:00:23.8]} 44. Kg2 {[%clk
0:00:30.8]} 44... Nxd3 {[%clk 0:00:22.7]} 45. h3 {[%clk 0:00:28.1]} 45... Ne1+
{[%clk 0:00:23.4]} 0-1

[Event "*** MasterClass Titled Tuesday Blitz"]
[Site "Chess.com"]
[Date "2017.08.01"]
[Round "10"]
[White "evgenysharapov"]
[Black "Rbrrt"]
[Result "1-0"]
[WhiteElo "2284"]
[BlackElo "2321"]
[TimeControl "180+2"]
[EndTime "15:16:49 PDT"]
[Termination "evgenysharapov won by checkmate"]

1. e4 {[%clk 0:03:00.5]} 1... c5 {[%clk 0:03:01.5]} 2. Nf3 {[%clk 0:03:00.5]}
2... Nc6 {[%clk 0:03:03.2]} 3. d4 {[%clk 0:03:01.3]} 3... cxd4 {[%clk
0:03:05.1]} 4. Nxd4 {[%clk 0:03:02.4]} 4... Nf6 {[%clk 0:03:06.6]} 5. Nc3 {[%clk
0:03:03.2]} 5... e5 {[%clk 0:03:08.3]} 6. Ndb5 {[%clk 0:03:03.7]} 6... d6 {[%clk
0:03:10]} 7. Bg5 {[%clk 0:03:01.9]} 7... a6 {[%clk 0:03:10.5]} 8. Na3 {[%clk
0:03:02.8]} 8... b5 {[%clk 0:03:12.1]} 9. Nd5 {[%clk 0:03:02.8]} 9... Be7 {[%clk
0:03:13.6]} 10. Bxf6 {[%clk 0:03:03.1]} 10... Bxf6 {[%clk 0:03:15.5]} 11. c3
{[%clk 0:03:03.7]} 11... Bg5 {[%clk 0:03:15.9]} 12. Nc2 {[%clk 0:03:03.1]} 12...
Rb8 {[%clk 0:03:16.8]} 13. a4 {[%clk 0:02:54.8]} 13... bxa4 {[%clk 0:03:18.7]}
14. Ncb4 {[%clk 0:02:55.4]} 14... Nxb4 {[%clk 0:03:14.3]} 15. cxb4 {[%clk
0:02:56.1]} 15... Bd7 {[%clk 0:02:13.7]} 16. Bxa6 {[%clk 0:02:52.6]} 16... O-O
{[%clk 0:02:13.9]} 17. O-O {[%clk 0:02:51.7]} 17... Bc6 {[%clk 0:02:13.3]} 18.
b5 {[%clk 0:02:16.9]} 18... Bxb5 {[%clk 0:02:12.6]} 19. Bxb5 {[%clk 0:02:17.7]}
19... Rxb5 {[%clk 0:02:14.3]} 20. Ra2 {[%clk 0:02:17.6]} 20... Qb8 {[%clk
0:02:08.6]} 21. Qxa4 {[%clk 0:02:04.7]} 21... Rxb2 {[%clk 0:02:06.8]} 22. Rxb2
{[%clk 0:02:05.6]} 22... Qxb2 {[%clk 0:02:08.7]} 23. Qd7 {[%clk 0:01:57.2]}
23... Qd4 {[%clk 0:01:42.8]} 24. Qf5 {[%clk 0:01:50]} 24... Bd8 {[%clk
0:01:36.4]} 25. g3 {[%clk 0:01:46.1]} 25... g6 {[%clk 0:01:34.3]} 26. Qf3 {[%clk
0:01:35.7]} 26... f5 {[%clk 0:01:32.7]} 27. exf5 {[%clk 0:01:28.5]} 27... e4
{[%clk 0:01:20.6]} 28. Qb3 {[%clk 0:01:26.4]} 28... gxf5 {[%clk 0:01:12.5]} 29.
Nf4+ {[%clk 0:01:20.3]} 29... Kh8 {[%clk 0:01:08.2]} 30. Ne6 {[%clk 0:01:20.8]}
30... Qf6 {[%clk 0:01:04.4]} 31. Nxf8 {[%clk 0:01:21.2]} 31... Qxf8 {[%clk
0:01:06.3]} 32. Qe6 {[%clk 0:01:17.8]} 32... Qf6 {[%clk 0:01:07.1]} 33. Qe8+
{[%clk 0:01:12.8]} 33... Kg7 {[%clk 0:01:05.8]} 34. Rb1 {[%clk 0:01:11.6]} 34...
Qe7 {[%clk 0:00:46.6]} 35. Qh5 {[%clk 0:01:11.1]} 35... Qd7 {[%clk 0:00:42.5]}
36. Kg2 {[%clk 0:00:48.7]} 36... d5 {[%clk 0:00:36.8]} 37. Rd1 {[%clk
0:00:34.4]} 37... d4 {[%clk 0:00:36.6]} 38. g4 {[%clk 0:00:35.7]} 38... e3
{[%clk 0:00:20.1]} 39. gxf5 {[%clk 0:00:27.9]} 39... Qc6+ {[%clk 0:00:11.9]} 40.
Qf3 {[%clk 0:00:20.7]} 40... Qc3 {[%clk 0:00:05.3]} 41. Rg1 {[%clk 0:00:18.8]}
41... e2 {[%clk 0:00:02.4]} 42. Qxe2 {[%clk 0:00:17.5]} 42... d3 {[%clk
0:00:05.3]} 43. Kh1+ {[%clk 0:00:16.3]} 43... Kf6 {[%clk 0:00:04.8]} 44. Qe6#
{[%clk 0:00:16.2]} 1-0

[Event "*** MasterClass Titled Tuesday Blitz"]
[Site "Chess.com"]
[Date "2017.08.01"]
[Round "10"]
[White "Witik"]
[Black "FairChess_on_YouTube"]
[Result "0-1"]
[WhiteElo "2586"]
[BlackElo "2751"]
[TimeControl "180+2"]
[EndTime "15:16:56 PDT"]
[Termination "FairChess_on_YouTube won by resignation"]

1. d4 {[%clk 0:03:01.9]} 1... d5 {[%clk 0:02:59.5]} 2. Bf4 {[%clk 0:03:02.9]}
2... Nf6 {[%clk 0:03:00.2]} 3. e3 {[%clk 0:03:03.5]} 3... g6 {[%clk 0:03:01]} 4.
Nf3 {[%clk 0:02:57.3]} 4... Bg7 {[%clk 0:03:02.1]} 5. Nc3 {[%clk 0:02:58.2]}
5... O-O {[%clk 0:03:02.2]} 6. Be2 {[%clk 0:02:59.2]} 6... c5 {[%clk 0:03:02.8]}
7. dxc5 {[%clk 0:02:56.1]} 7... Nc6 {[%clk 0:03:03.7]} 8. Ne5 {[%clk 0:02:50.1]}
8... Qa5 {[%clk 0:02:52.8]} 9. O-O {[%clk 0:02:46]} 9... Qxc5 {[%clk 0:02:53]}
10. h3 {[%clk 0:02:34]} 10... Bf5 {[%clk 0:02:50.8]} 11. Re1 {[%clk 0:02:19.7]}
11... Rac8 {[%clk 0:02:47.7]} 12. Rc1 {[%clk 0:02:12.8]} 12... Rfd8 {[%clk
0:02:47.5]} 13. Nxc6 {[%clk 0:02:00.9]} 13... Rxc6 {[%clk 0:02:27.3]} 14. Nb5
{[%clk 0:01:54.2]} 14... Ne4 {[%clk 0:02:22]} 15. c3 {[%clk 0:01:48.1]} 15... e5
{[%clk 0:02:20.6]} 16. Bh2 {[%clk 0:01:48.8]} 16... a6 {[%clk 0:02:18.9]} 17.
Na3 {[%clk 0:01:47.8]} 17... b5 {[%clk 0:02:12.2]} 18. Nc2 {[%clk 0:01:46.7]}
18... a5 {[%clk 0:02:10.8]} 19. Bd3 {[%clk 0:01:44.1]} 19... Rcc8 {[%clk
0:01:52]} 20. a3 {[%clk 0:01:41]} 20... Nd6 {[%clk 0:01:47.8]} 21. Qe2 {[%clk
0:01:36.7]} 21... e4 {[%clk 0:01:46.8]} 22. Bxd6 {[%clk 0:01:34.5]} 22... Rxd6
{[%clk 0:01:30.5]} 23. Bxb5 {[%clk 0:01:33.5]} 23... Be5 {[%clk 0:01:31.3]} 24.
a4 {[%clk 0:01:31.2]} 24... Rf6 {[%clk 0:01:30.5]} 25. Nd4 {[%clk 0:01:26.1]}
25... Bb8 {[%clk 0:01:31.3]} 26. c4 {[%clk 0:01:15.2]} 26... h5 {[%clk
0:01:18.6]} 27. Nxf5 {[%clk 0:01:05.7]} 27... Rxf5 {[%clk 0:01:17.1]} 28. g3
{[%clk 0:01:02.6]} 28... h4 {[%clk 0:00:39.7]} 29. g4 {[%clk 0:00:32.5]} 29...
Qd6 {[%clk 0:00:31.2]} 30. f4 {[%clk 0:00:23.8]} 30... exf3 {[%clk 0:00:32.3]}
31. Qf2 {[%clk 0:00:24.6]} 31... Rf6 {[%clk 0:00:30.4]} 32. cxd5 {[%clk
0:00:23.1]} 32... Rxc1 {[%clk 0:00:28.6]} 33. Rxc1 {[%clk 0:00:24.1]} 33... Kg7
{[%clk 0:00:19.3]} 34. Rc6 {[%clk 0:00:24.5]} 34... Qe5 {[%clk 0:00:13.4]} 35.
Rxf6 {[%clk 0:00:23.2]} 35... Qxf6 {[%clk 0:00:15.3]} 36. Kf1 {[%clk 0:00:18.4]}
36... Bg3 {[%clk 0:00:14.2]} 37. Qd2 {[%clk 0:00:16.9]} 37... Bd6 {[%clk
0:00:13.7]} 38. Qd4 {[%clk 0:00:17.7]} 38... Be5 {[%clk 0:00:14.3]} 39. Qd2
{[%clk 0:00:18.2]} 39... Qd6 {[%clk 0:00:12.2]} 40. e4 {[%clk 0:00:17.3]} 40...
Bf6 {[%clk 0:00:09.2]} 41. Qe3 {[%clk 0:00:14.6]} 41... Qg3 {[%clk 0:00:09.6]}
42. g5 {[%clk 0:00:13.8]} 42... Bxg5 {[%clk 0:00:08.4]} 43. Qd4+ {[%clk
0:00:15]} 43... Bf6 {[%clk 0:00:09.4]} 44. Qf2 {[%clk 0:00:13.8]} 44... Qxh3+
{[%clk 0:00:09.9]} 45. Kg1 {[%clk 0:00:14.7]} 45... Qg4+ {[%clk 0:00:08.3]} 46.
Kf1 {[%clk 0:00:14.5]} 46... h3 {[%clk 0:00:06.9]} 47. d6 {[%clk 0:00:12.7]}
47... Qg2+ {[%clk 0:00:07.9]} 48. Qxg2 {[%clk 0:00:10.6]} 48... hxg2+ {[%clk
0:00:08.3]} 49. Kf2 {[%clk 0:00:11.9]} 49... Bd4+ {[%clk 0:00:09.3]} 0-1

[Event "*** MasterClass Titled Tuesday Blitz"]
[Site "Chess.com"]
[Date "2017.08.01"]
[Round "10"]
[White "GrigorGrigorov"]
[Black "krzyzan94"]
[Result "0-1"]
[WhiteElo "2601"]
[BlackElo "2566"]
[TimeControl "180+2"]
[EndTime "15:16:59 PDT"]
[Termination "krzyzan94 won by resignation"]

1. d4 {[%clk 0:03:01.9]} 1... Nf6 {[%clk 0:03:00.5]} 2. c4 {[%clk 0:03:02.9]}
2... d6 {[%clk 0:02:58.7]} 3. Nf3 {[%clk 0:03:03.4]} 3... g6 {[%clk 0:02:59.4]}
4. g3 {[%clk 0:03:04.6]} 4... Bg7 {[%clk 0:02:59.8]} 5. Bg2 {[%clk 0:03:05.7]}
5... O-O {[%clk 0:03:01.5]} 6. O-O {[%clk 0:03:06.8]} 6... Nc6 {[%clk
0:03:03.1]} 7. Nc3 {[%clk 0:03:08]} 7... Bg4 {[%clk 0:03:03.7]} 8. d5 {[%clk
0:03:06.1]} 8... Na5 {[%clk 0:03:04.4]} 9. Nd2 {[%clk 0:03:04.7]} 9... c5 {[%clk
0:03:06]} 10. Qc2 {[%clk 0:03:02.6]} 10... a6 {[%clk 0:03:06.5]} 11. h3 {[%clk
0:03:03.4]} 11... Bd7 {[%clk 0:03:02.2]} 12. b3 {[%clk 0:03:02.7]} 12... b5
{[%clk 0:03:02.1]} 13. Bb2 {[%clk 0:03:01.3]} 13... Rb8 {[%clk 0:03:01.7]} 14.
Rab1 {[%clk 0:03:02.1]} 14... Qc7 {[%clk 0:02:48.2]} 15. e4 {[%clk 0:02:59.2]}
15... Rb7 {[%clk 0:02:34.6]} 16. Ne2 {[%clk 0:02:59]} 16... bxc4 {[%clk
0:02:30]} 17. bxc4 {[%clk 0:02:58.9]} 17... Rfb8 {[%clk 0:02:30.5]} 18. Bc3
{[%clk 0:02:59.8]} 18... Ne8 {[%clk 0:02:25.7]} 19. Bxg7 {[%clk 0:02:45.1]}
19... Nxg7 {[%clk 0:02:24.2]} 20. Rxb7 {[%clk 0:02:41.8]} 20... Rxb7 {[%clk
0:02:25.2]} 21. Rb1 {[%clk 0:02:42.6]} 21... Qb8 {[%clk 0:02:08.3]} 22. Rxb7
{[%clk 0:02:37.2]} 22... Qxb7 {[%clk 0:02:10.2]} 23. Qc3 {[%clk 0:02:16.4]}
23... Qb6 {[%clk 0:01:53.1]} 24. a3 {[%clk 0:02:09.6]} 24... Ba4 {[%clk
0:01:48.2]} 25. Nc1 {[%clk 0:02:08.3]} 25... e5 {[%clk 0:01:33.6]} 26. Kh2
{[%clk 0:02:00.2]} 26... Nb7 {[%clk 0:01:31.1]} 27. f4 {[%clk 0:01:57.7]} 27...
f6 {[%clk 0:01:32]} 28. Nd3 {[%clk 0:01:54.8]} 28... Na5 {[%clk 0:01:29.7]} 29.
Nf2 {[%clk 0:01:49.4]} 29... Nb3 {[%clk 0:01:24.1]} 30. Ng4 {[%clk 0:01:41]}
30... Ne8 {[%clk 0:01:19.6]} 31. fxe5 {[%clk 0:01:30.9]} 31... fxe5 {[%clk
0:01:09.8]} 32. Nf3 {[%clk 0:01:12.3]} 32... h5 {[%clk 0:00:48.2]} 33. Ngxe5
{[%clk 0:00:42.1]} 33... dxe5 {[%clk 0:00:48.2]} 34. Qxe5 {[%clk 0:00:43.7]}
34... Nd4 {[%clk 0:00:44.4]} 35. Ng5 {[%clk 0:00:17.1]} 35... Qd6 {[%clk
0:00:31.4]} 36. Qf4 {[%clk 0:00:13.5]} 36... Qxf4 {[%clk 0:00:29.6]} 37. gxf4
{[%clk 0:00:15.4]} 37... Nd6 {[%clk 0:00:31.2]} 38. e5 {[%clk 0:00:15.3]} 38...
Nxc4 {[%clk 0:00:32.2]} 39. d6 {[%clk 0:00:17.2]} 39... Ne3 {[%clk 0:00:30.8]}
40. e6 {[%clk 0:00:16.2]} 40... Nxe6 {[%clk 0:00:30.8]} 41. Nxe6 {[%clk
0:00:16.5]} 41... c4 {[%clk 0:00:32.5]} 42. Nc5 {[%clk 0:00:12.6]} 42... Nxg2
{[%clk 0:00:21.6]} 43. Nxa4 {[%clk 0:00:09.9]} 43... Nxf4 {[%clk 0:00:22.9]} 44.
Nc5 {[%clk 0:00:09.1]} 44... Kf7 {[%clk 0:00:23.6]} 45. Nxa6 {[%clk 0:00:10]}
45... c3 {[%clk 0:00:24.7]} 46. Nb4 {[%clk 0:00:10.5]} 46... Ke6 {[%clk
0:00:25.8]} 47. Kg3 {[%clk 0:00:12]} 47... g5 {[%clk 0:00:23.4]} 48. h4 {[%clk
0:00:11]} 48... Ng6 {[%clk 0:00:19.3]} 49. hxg5 {[%clk 0:00:11.8]} 49... h4+
{[%clk 0:00:20.8]} 50. Kg4 {[%clk 0:00:12.2]} 50... Kxd6 {[%clk 0:00:22.3]} 51.
a4 {[%clk 0:00:13.2]} 51... Kc5 {[%clk 0:00:23.4]} 52. Nc2 {[%clk 0:00:14.4]}
52... Kc4 {[%clk 0:00:24.7]} 53. Kh5 {[%clk 0:00:14.6]} 53... h3 {[%clk
0:00:25.5]} 54. Kxg6 {[%clk 0:00:16]} 54... h2 {[%clk 0:00:27.1]} 55. a5 {[%clk
0:00:17.2]} 55... h1=Q {[%clk 0:00:28.5]} 56. a6 {[%clk 0:00:18.8]} 56... Qe4+
{[%clk 0:00:29.7]} 0-1